Workbook

Sheet Úvodní list
B2: Navrhování a rozhodování o typu protihlukových stěn u dopravních staveb
B7: Příloha č.1 - Tabulky pro stanovení vah kritérií
B11: V této elektronické příloze mé bakalářské práce uvádím doplnění postupů uvedených v kapitole 4.3 - Stanovení vah kritérií o praktické tabulky, které jsem použil pro výpočet a grafické podání výsledků jednotlivých metod určování vah pro kritéria výběru variant. Tabulky jsou zároveň upraveny tak, aby bylo umožněno jejich jednoduché opětovné použití na jakékoli jiné úlohy vícekriteriálního hodnocení variant a jsou doplněny o popisy objasňující jejich fungování a poskytující návod na jejich použití pro jiné výpočty.
B19: Metody určování vah mají v tomto sešitu každý svůj list, mezi kterými lze navigovat buďto přes překlikávání listů na spodní ovládací liště, nebo za pomoci odkazů v obsahu.
B23: Obsah:
B24: Bodovací metoda
B25: Metfesselova alokace
B26: Fullerův trojúhelník
B27: Saatyho metoda

Sheet Bodovací metoda
B2: Bodovací metoda
D6: Kritérium | E6: Bodové hodnocení | F6: Normovaná váha
D7: k1 | E7: 8 | F7: =Tabulka21617[[#This Row],[Bodové hodnocení]]/SUM(E:E) -> 0.2105263158
D8: k2 | E8: 4 | F8: =Tabulka21617[[#This Row],[Bodové hodnocení]]/SUM(E:E) -> 0.1052631579
D9: k3 | E9: 9 | F9: =Tabulka21617[[#This Row],[Bodové hodnocení]]/SUM(E:E) -> 0.2368421053
D10: k4 | E10: 2 | F10: =Tabulka21617[[#This Row],[Bodové hodnocení]]/SUM(E:E) -> 0.05263157895
D11: k5 | E11: 6 | F11: =Tabulka21617[[#This Row],[Bodové hodnocení]]/SUM(E:E) -> 0.1578947368
D12: k6 | E12: 9 | F12: =Tabulka21617[[#This Row],[Bodové hodnocení]]/SUM(E:E) -> 0.2368421053
K53: <- zpět na Úvodní list

Sheet Metfesselova alokace
B2: Metfesselova alokace
B6: Skupina | C6: Bodové hodnocení | D6: Normovaná váha
B7: S1 | C7: 6 | D7: =Tabulka242125[[#This Row],[Bodové hodnocení]]/SUM(C:C) -> 0.2608695652
B8: S2 | C8: 9 | D8: =Tabulka242125[[#This Row],[Bodové hodnocení]]/SUM(C:C) -> 0.3913043478
B9: S3 | C9: 8 | D9: =Tabulka242125[[#This Row],[Bodové hodnocení]]/SUM(C:C) -> 0.347826087
B16: S1 | C16: Kritérium | D16: Pořadí | E16: Normovaná váha | F16: Výsledková váha
C17: k1 | D17: 2 | E17: =Tabulka2492226[[#This Row],[Pořadí]]/SUM($D$17:$D$22) -> 0.6666666667 | F17: =Tabulka2492226[[#This Row],[Normovaná váha]]*$D$7 -> 0.1739130435
C18: k2 | D18: 1 | E18: =Tabulka2492226[[#This Row],[Pořadí]]/SUM($D$17:$D$22) -> 0.3333333333 | F18: =Tabulka2492226[[#This Row],[Normovaná váha]]*$D$7 -> 0.08695652174
B26: S2 | C26: Kritérium | D26: Pořadí | E26: Normovaná váha | F26: Výsledková váha
C27: k1 | D27: 3 | E27: =Tabulka249102327[[#This Row],[Pořadí]]/SUM($D$27:$D$32) -> 0.5 | F27: =Tabulka249102327[[#This Row],[Normovaná váha]]*$D$8 -> 0.1956521739
C28: k2 | D28: 1 | E28: =Tabulka249102327[[#This Row],[Pořadí]]/SUM($D$27:$D$32) -> 0.1666666667 | F28: =Tabulka249102327[[#This Row],[Normovaná váha]]*$D$8 -> 0.0652173913
C29: k3 | D29: 2 | E29: =Tabulka249102327[[#This Row],[Pořadí]]/SUM($D$27:$D$32) -> 0.3333333333 | F29: =Tabulka249102327[[#This Row],[Normovaná váha]]*$D$8 -> 0.1304347826
B36: S3 | C36: Kritérium | D36: Pořadí | E36: Normovaná váha | F36: Výsledková váha
C37: k1 | D37: 1 | E37: =Tabulka249112428[[#This Row],[Pořadí]]/SUM($D$37:$D$42) -> 1 | F37: =Tabulka249112428[[#This Row],[Normovaná váha]]*$D$9 -> 0.347826087
H54: <- zpět na Úvodní list

Sheet Fullerův trojúhelník
B2: Fullerova metoda | J2: Barevné vyznačení: | N2: <- zpět na Úvodní list
C5: Fullerův trojúhelník
B6: x | C6: x | D6: x | E6: x | F6: x | G6: x | H6: x
B7: y | C7: 1 | D7: 2 | E7: 3 | F7: 4 | G7: 5 | H7: 6
C8: y | D8: y | E8: y | F8: y | G8: y | H8: y
C9: 1 | D9: 2 | E9: 3 | F9: 4 | G9: 5 | H9: 6
D10: 1 | E10: 1 | F10: 1 | G10: 1 | H10: 1
D11: 2 | E11: 3 | F11: 4 | G11: 5 | H11: 6
E12: 2 | F12: 2 | G12: 2 | H12: 2
E13: 3 | F13: 4 | G13: 5 | H13: 6
F14: 3 | G14: 3 | H14: 3
B15: Počet vyznačení (N): | D15: =[1]!ColorSummer(B6:H19,[1]!ColorPicker(L2)) ->  | F15: 4 | G15: 5 | H15: 6
G16: 4 | H16: 4
B17: Kritérium | C17: Vyznač. | D17: Váha | G17: 5 | H17: 6
B18: k1 | C18: 3 | D18: =Tabulka12[[#This Row],[Vyznač.]]/$D$15 ->  | H18: 5
B19: k2 | C19: 1 | D19: =Tabulka12[[#This Row],[Vyznač.]]/$D$15 ->  | H19: 6
B20: k3 | C20: 5 | D20: =Tabulka12[[#This Row],[Vyznač.]]/$D$15 -> 
B21: k4 | C21: 1 | D21: =Tabulka12[[#This Row],[Vyznač.]]/$D$15 -> 
B22: k5 | C22: 3 | D22: =Tabulka12[[#This Row],[Vyznač.]]/$D$15 -> 
B23: k6 | C23: 5 | D23: =Tabulka12[[#This Row],[Vyznač.]]/$D$15 -> 

Sheet Saatyho metoda
B2: Saatyho matice + geometrický průměr | J2: <- zpět na Úvodní list
B5: Saatyho matice
B6: --- | C6: k1 | D6: k2 | E6: k3 | F6: k4 | G6: k5 | H6: k6
B7: k1 | C7: 1 | D7: 5 | E7: =1/3 -> 0.3333333333 | F7: 4 | G7: 3 | H7: =1/3 -> 0.3333333333
B8: k2 | C8: =1/D7 -> 0.2 | D8: 1 | E8: =1/7 -> 0.1428571429 | F8: 3 | G8: 1 | H8: =1/7 -> 0.1428571429
B9: k3 | C9: =1/E7 -> 3 | D9: =1/E8 -> 7 | E9: 1 | F9: 6 | G9: 4 | H9: =1/2 -> 0.5
B10: k4 | C10: =1/F7 -> 0.25 | D10: =1/F8 -> 0.3333333333 | E10: =1/F9 -> 0.1666666667 | F10: 1 | G10: =1/3 -> 0.3333333333 | H10: =1/7 -> 0.1428571429
B11: k5 | C11: =1/G7 -> 0.3333333333 | D11: =1/G8 -> 1 | E11: =1/G9 -> 0.25 | F11: =1/G10 -> 3 | G11: 1 | H11: =1/6 -> 0.1666666667
B12: k6 | C12: =1/H7 -> 3 | D12: =1/H8 -> 7 | E12: =1/H9 -> 2 | F12: =1/H10 -> 7 | G12: =1/H11 -> 6 | H12: 1
C13: =1/I7 ->  | D13: =1/I8 ->  | E13: =1/I9 ->  | F13: =1/I10 ->  | G13: =1/I11 ->  | H13: =1/I12 ->  | I13: 1
C14: =1/J7 ->  | D14: =1/J8 ->  | E14: =1/J9 ->  | F14: =1/J10 ->  | G14: =1/J11 ->  | H14: =1/J12 ->  | I14: =1/J13 ->  | J14: 1
C15: =1/K7 ->  | D15: =1/K8 ->  | E15: =1/K9 ->  | F15: =1/K10 ->  | G15: =1/K11 ->  | H15: =1/K12 ->  | I15: =1/K13 ->  | J15: =1/K14 ->  | K15: 1
C16: =1/L7 ->  | D16: =1/L8 ->  | E16: =1/L9 ->  | F16: =1/L10 ->  | G16: =1/L11 ->  | H16: =1/L12 ->  | I16: =1/L13 ->  | J16: =1/L14 ->  | K16: =1/L15 ->  | L16: 1
B19: Výpočet vah pomocí geometrického průměru | F19: Počet kritérií: | H19: =COUNTIF(C7:L7,"<10") -> 6
B20: Kritérium | C20: Geom. průměr | D20: Normovaná váha
B21: k1 | C21: =PRODUCT(7:7)^(1/$H$19) -> 1.371886314 | D21: =Tabulka14[[#This Row],[Geom. průměr]]/SUM($C$21:$C$30) -> 0.1572324516
B22: k2 | C22: =PRODUCT(8:8)^(1/$H$19) -> 0.4800935394 | D22: =Tabulka14[[#This Row],[Geom. průměr]]/SUM($C$21:$C$30) -> 0.05502371693
B23: k3 | C23: 2.513236877 | D23: =Tabulka14[[#This Row],[Geom. průměr]]/SUM($C$21:$C$30) -> 0.2880431064
B24: k4 | C24: 0.2951716897 | D24: =Tabulka14[[#This Row],[Geom. průměr]]/SUM($C$21:$C$30) -> 0.0338297481
B25: k5 | C25: 0.5887959215 | D25: =Tabulka14[[#This Row],[Geom. průměr]]/SUM($C$21:$C$30) -> 0.0674821414
B26: k6 | C26: 3.476026645 | D26: =Tabulka14[[#This Row],[Geom. průměr]]/SUM($C$21:$C$30) -> 0.3983888356
